bitfinex-derivatives/quotes_SOLF0:USTF0_20250703
["timestamp","ask_amount","ask_price","bid_price","bid_amount"]
[1751536336939,6.4111,155.93,155.89,6.4122]
[1751536337538,5.43162415,155.92,155.87,6.413]
[1751536338640,6.4125,155.9,155.87,6.413]
[1751536339539,6.4119,155.91,155.82,5.43162415]
[1751536339740,6.4119,155.91,155.84,5.43162415]
[1751536339941,6.4119,155.91,155.87,6.4131]
[1751536340240,6.4122,155.9,155.87,6.4131]
[1751536340540,6.4122,155.9,155.86,6.4137]
[1751536340938,6.4126,155.89,155.84,5.43162415]
[1751536341140,6.4126,155.89,155.85,6.414]
[1751536341335,6.4133,155.88,155.8,5.43162415]
[1751536341532,5.43162415,155.88,155.8,5.43162415]
[1751536342542,6.4141,155.86,155.82,6.4152]
[1751536343241,6.4142,155.85,155.82,6.4152]
[1751536343842,6.414,155.86,155.82,6.4152]
[1751536344733,5.43162415,155.86,155.77,12.19632415]
[1751536345344,6.4147,155.84,155.8,6.4161]
[1751536345534,5.43162415,155.86,155.8,6.4161]
[1751536346144,6.4147,155.84,155.79,6.4165]
[1751536346441,6.4147,155.84,155.77,6.7647]
[1751536346642,6.4147,155.84,155.79,6.4166]
[1751536346942,5.43162415,155.84,155.74,5.43162415]
[1751536347243,5.43162415,155.82,155.78,6.417]
[1751536347442,5.43162415,155.82,155.74,5.43162415]
[1751536347944,2.2862,155.85,155.74,3.62499158]
[1751536348143,3.62499158,155.81,155.74,3.62499158]
[1751536348342,3.62499158,155.82,155.74,3.62499158]
[1751536349442,3.62499158,155.82,155.78,6.4169]
[1751536350545,10.04049158,155.82,155.78,6.4169]
[1751536350743,3.62499158,155.82,155.78,6.4169]
[1751536351244,10.04079158,155.82,155.78,6.4169]
[1751536352044,10.04079158,155.82,155.79,6.4167]
[1751536354547,6.4159,155.81,155.79,6.4167]
[1751536354747,3.62499158,155.8,155.72,2.1694]
[1751536354940,3.62499158,155.78,155.7,12.84]
[1751536355140,3.62499158,155.78,155.75,6.4182]
[1751536355340,10.04229158,155.78,155.7,3.62499158]
[1751536355835,10.04229158,155.78,155.75,6.4183]
[1751536356342,3.62499158,155.78,155.76,6.4178]
[1751536356536,2.2862,155.85,155.74,3.62499158]
[1751536356537,3.62499158,155.81,155.74,3.62499158]
[1751536357342,10.04109158,155.81,155.76,6.4179]
[1751536357542,10.04109158,155.81,155.74,3.62499158]
[1751536357543,3.62499158,155.81,155.74,3.62499158]
[1751536357744,5.74729158,155.84,155.76,3.62499158]
[1751536357948,5.74729158,155.84,155.75,3.62499158]
[1751536358448,6.4152,155.83,155.79,6.4167]
[1751536359151,6.4155,155.82,155.78,6.4169]
[1751536359352,6.4155,155.82,155.75,3.62499158]
[1751536359753,3.62499158,155.83,155.75,3.62499158]
[1751536360650,10.04019158,155.83,155.79,6.4166]
[1751536362253,10.04019158,155.83,155.8,6.4162]
[1751536362954,6.4155,155.82,155.79,6.4165]
[1751536363755,3.62499158,155.81,155.72,2.276]
[1751536363954,3.62499158,155.81,155.73,3.62499158]
[1751536364353,3.62499158,155.81,155.78,6.4169]
[1751536364654,3.62499158,155.81,155.73,3.62499158]
[1751536364853,3.62499158,155.81,155.79,6.4165]
[1751536365053,3.62499158,155.83,155.75,3.62499158]
[1751536365254,10.04019158,155.83,155.79,6.4165]
[1751536365456,3.62499158,155.83,155.79,6.4165]
[1751536365756,6.4155,155.82,155.79,6.4165]
[1751536367057,6.4159,155.81,155.78,6.4169]
[1751536367748,10.04089158,155.81,155.78,6.4169]
[1751536368556,3.62499158,155.81,155.78,6.4169]
[1751536368858,3.62499158,155.81,155.79,6.4165]
[1751536370459,3.62499158,155.81,155.8,6.4163]
[1751536370759,10.04089158,155.81,155.74,2.2579]
[1751536370955,2.1223,155.84,155.74,2.2579]
[1751536370956,2.1223,155.84,155.74,5.88289158]
[1751536371159,2.1223,155.84,155.78,3.62499158]
[1751536371360,3.62499158,155.85,155.78,3.62499158]
[1751536371562,10.03849158,155.87,155.8,3.62499158]
[1751536372061,10.03849158,155.87,155.83,6.4148]
[1751536373253,6.4138,155.86,155.83,6.4148]
[1751536375265,6.4138,155.86,155.79,3.62499158]
[1751536376962,6.4138,155.86,155.82,6.4151]
[1751536377462,10.03859158,155.87,155.79,3.62499158]
[1751536377663,3.62499158,155.87,155.83,6.415]
[1751536377963,6.4141,155.86,155.75,7.91147792]
[1751536378163,6.4141,155.86,155.82,6.4152]
[1751536378363,6.4141,155.86,155.78,3.62499158]
[1751536378566,6.4141,155.86,155.82,6.4151]
[1751536379264,6.4141,155.86,155.83,6.415]
[1751536379463,6.4141,155.86,155.78,3.62499158]
[1751536380065,6.4141,155.86,155.82,6.4152]
[1751536380365,6.4142,155.85,155.82,6.4152]
[1751536381168,10.03919158,155.85,155.82,6.4152]
[1751536382166,3.62499158,155.85,155.83,6.4149]
[1751536382968,10.03919158,155.85,155.83,6.4149]
[1751536383769,3.62499158,155.85,155.83,6.4149]
[1751536384068,3.62499158,155.87,155.79,3.62499158]
[1751536384268,10.03839158,155.87,155.79,3.62499158]
[1751536384468,10.03839158,155.87,155.84,6.4144]
[1751536385761,3.62499158,155.85,155.78,2.2253]
[1751536385972,3.62499158,155.84,155.75,7.91147792]
[1751536386271,3.62499158,155.79,155.77,6.4172]
[1751536386473,3.62499158,155.78,155.72,7.91147792]
[1751536388369,3.62499158,155.78,155.77,6.4175]
[1751536388571,5.96529158,155.83,155.75,3.62499158]
[1751536389469,6.4157,155.82,155.78,6.4168]
[1751536391378,6.4157,155.82,155.79,6.4167]
[1751536391578,12.38039158,155.83,155.79,6.4167]
[1751536391874,5.96529158,155.83,155.75,11.5364695]
[1751536392074,5.96529158,155.83,155.81,6.4158]
[1751536392278,3.62499158,155.83,155.81,6.4158]
[1751536392675,3.62499158,155.83,155.8,6.4161]
[1751536393472,3.62499158,155.83,155.81,6.4158]
[1751536393877,10.04009158,155.83,155.8,6.416]
[1751536394178,3.62499158,155.83,155.77,3.62499158]
[1751536394678,3.62499158,155.83,155.8,6.416]
[1751536395374,3.62499158,155.83,155.81,6.4159]
[1751536395974,3.62499158,155.83,155.75,5.95959158]
[1751536395975,3.62499158,155.83,155.82,6.4155]
[1751536396172,5.74699158,155.87,155.76,7.91147792]
[1751536396371,5.74699158,155.87,155.8,3.62499158]
[1751536396581,5.74699158,155.87,155.82,6.4151]
[1751536396779,5.74699158,155.87,155.8,3.62499158]
[1751536397478,6.414,155.86,155.83,6.4149]
[1751536397678,3.62499158,155.85,155.77,3.62499158]
[1751536397873,10.03959158,155.85,155.81,6.4156]
[1751536398080,3.62499158,155.85,155.81,6.4156]
[1751536398274,3.62499158,155.83,155.81,6.4156]
[1751536399784,10.04009158,155.83,155.76,11.5364695]
[1751536400185,10.04009158,155.83,155.8,6.416]
[1751536401884,3.62499158,155.83,155.81,6.4158]
[1751536402087,3.62499158,155.83,155.76,3.62499158]
[1751536402293,3.62499158,155.82,155.75,8.17609158]
[1751536402483,10.04069158,155.82,155.79,6.4165]
[1751536402687,3.62499158,155.82,155.75,2.3346]
[1751536403481,6.4161,155.81,155.78,6.4169]
[1751536403884,10.04109158,155.81,155.75,2.3346]
[1751536404680,10.04109158,155.81,155.78,6.4171]
[1751536406085,3.62499158,155.81,155.78,6.4171]
[1751536407388,3.62499158,155.81,155.79,6.4166]
[1751536408087,5.93369158,155.84,155.76,3.62499158]
[1751536410089,12.34849158,155.84,155.81,6.4158]
[1751536410690,8.7235,155.84,155.81,6.4158]
[1751536410886,3.62499158,155.83,155.81,6.4158]
[1751536412290,3.62499158,155.83,155.82,6.4155]
[1751536412990,3.62499158,155.83,155.81,6.4157]
[1751536414490,3.62499158,155.83,155.82,6.4155]
[1751536414693,3.62499158,155.83,155.76,3.62499158]
[1751536416292,3.62499158,155.84,155.78,3.62499158]
[1751536416488,3.62499158,155.86,155.78,3.62499158]
[1751536416891,3.62499158,155.86,155.84,6.4143]
[1751536417294,8.5354,155.87,155.84,6.4143]
[1751536417295,12.16039158,155.87,155.84,6.4143]
[1751536417592,12.16039158,155.87,155.83,6.4149]
[1751536418190,12.16039158,155.87,155.84,6.4146]
[1751536420394,12.16039158,155.87,155.85,6.4141]
[1751536422099,3.62499158,155.89,155.8,3.62499158]
[1751536422295,3.62499158,155.89,155.82,3.62499158]
[1751536422793,3.62499158,155.89,155.87,6.4133]
[1751536423298,10.03759158,155.89,155.87,6.4133]
[1751536423801,10.03759158,155.89,155.86,6.4136]
[1751536423997,10.03739158,155.9,155.82,3.62499158]
[1751536424601,10.03739158,155.9,155.87,6.4131]
[1751536424806,3.62499158,155.9,155.84,3.62499158]
[1751536424998,3.62499158,155.92,155.84,3.62499158]
[1751536425201,3.62499158,155.92,155.88,6.4127]
[1751536425397,10.03659158,155.92,155.88,6.4127]
[1751536426102,6.4119,155.91,155.88,6.4127]
[1751536426302,3.62499158,155.9,155.87,6.4133]
[1751536426604,10.03739158,155.9,155.87,6.4133]
[1751536427503,3.62499158,155.9,155.88,6.413]
[1751536427701,3.62499158,155.9,155.8,20.74407792]
[1751536427901,10.03739158,155.9,155.83,3.62499158]
[1751536428094,6.5447,155.93,155.83,3.62499158]
[1751536428291,6.5447,155.93,155.85,3.62499158]
[1751536428494,2.1212,155.93,155.91,6.4115]
[1751536428700,2.1212,155.93,155.87,3.62499158]
[1751536429802,10.03569158,155.94,155.87,3.62499158]
[1751536429803,3.62499158,155.94,155.87,3.62499158]
[1751536430403,10.03579158,155.94,155.9,6.4119]
[1751536430805,6.411,155.93,155.9,6.4119]
[1751536433305,10.03569158,155.94,155.91,6.4117]
[1751536434009,10.03569158,155.94,155.92,6.4113]
[1751536434912,10.03569158,155.94,155.91,6.4116]
[1751536436812,6.4111,155.93,155.91,6.4116]
[1751536437011,6.4111,155.93,155.9,6.412]
[1751536437513,3.62499158,155.94,155.9,6.412]
[1751536438110,6.411,155.93,155.9,6.412]
[1751536438311,10.03599158,155.93,155.9,6.412]
[1751536439116,6.4115,155.92,155.89,6.4124]
[1751536439316,3.62499158,155.93,155.89,6.4124]
[1751536439920,10.03699158,155.91,155.89,6.4124]
[1751536440214,3.62499158,155.91,155.83,4.4114]
[1751536440419,3.62499158,155.89,155.83,4.4114]
[1751536441017,6.4124,155.9,155.83,4.4114]
[1751536441218,6.4126,155.89,155.83,4.4114]
[1751536441415,3.62499158,155.9,155.83,2.1549]
[1751536441615,3.62499158,155.88,155.8,3.62499158]
[1751536441815,3.62499158,155.88,155.85,6.4139]
[1751536443516,10.03809158,155.88,155.85,6.4139]
[1751536444218,10.03809158,155.88,155.84,6.4144]
[1751536444219,6.4134,155.87,155.84,6.4144]
[1751536444421,3.62499158,155.86,155.8,5.93419158]
[1751536444817,3.62499158,155.86,155.83,6.4147]
[1751536447327,3.62499158,155.86,155.84,6.4145]
[1751536447525,10.03819158,155.88,155.8,2.3092]
[1751536448331,10.03819158,155.88,155.84,6.4143]
[1751536449431,10.03819158,155.88,155.85,6.4142]
[1751536450828,10.03819158,155.88,155.8,2.3092]
[1751536451131,3.62499158,155.88,155.81,3.62499158]
[1751536452131,10.03799158,155.88,155.85,6.4139]
[1751536452333,3.62499158,155.88,155.81,3.62499158]
[1751536452533,10.03819158,155.88,155.85,6.414]
[1751536453034,3.62499158,155.88,155.85,6.414]
[1751536454731,6.413,155.88,155.85,6.414]
[1751536455037,3.62499158,155.88,155.86,6.4137]
[1751536456435,10.03819158,155.88,155.86,6.4137]
[1751536457533,6.4134,155.87,155.85,6.4141]
[1751536457728,3.62499158,155.88,155.85,6.4141]
[1751536458636,10.03829158,155.88,155.85,6.4141]
[1751536459040,10.03829158,155.88,155.86,6.4138]
[1751536459339,10.03829158,155.88,155.8,5.93419158]
[1751536460138,10.03829158,155.88,155.85,6.414]
[1751536460334,6.4135,155.87,155.85,6.414]
[1751536463644,3.62499158,155.9,155.84,3.62499158]
[1751536463946,3.62499158,155.93,155.86,3.62499158]
[1751536464242,6.4107,155.94,155.91,6.4117]
[1751536464446,8.10059158,155.95,155.91,6.4117]
[1751536464636,8.10059158,155.95,155.88,3.62499158]
[1751536464836,14.51109158,155.95,155.91,6.4115]
[1751536465447,8.10059158,155.95,155.9,6.412]
[1751536465644,5.83869158,155.95,155.87,3.62499158]
[1751536466548,6.4108,155.94,155.87,3.62499158]
[1751536467049,6.4108,155.94,155.9,6.4119]
[1751536468245,5.83869158,155.95,155.87,3.62499158]
[1751536468747,2.2137,155.95,155.87,3.62499158]
[1751536468952,5.83869158,155.95,155.87,3.62499158]
[1751536469350,6.4106,155.94,155.87,3.62499158]
[1751536469750,5.83869158,155.95,155.87,3.62499158]
[1751536469948,3.62499158,155.96,155.89,3.62499158]
[1751536470347,6.4102,155.95,155.92,6.4112]
[1751536470545,3.62499158,155.96,155.92,6.4112]
[1751536470844,3.62499158,155.96,155.86,2.1238]
[1751536471044,3.62499158,155.94,155.91,6.4115]
[1751536472051,3.62499158,155.94,155.92,6.4112]
[1751536472257,10.03479158,155.96,155.89,3.62499158]
[1751536473152,10.03479158,155.96,155.92,6.4109]
[1751536473846,6.4102,155.95,155.92,6.4109]
[1751536474146,3.62499158,155.96,155.93,6.4109]
[1751536474353,10.03489158,155.96,155.93,6.4109]
[1751536475751,3.62499158,155.95,155.93,6.4109]
[1751536475946,10.03519158,155.95,155.92,6.4112]
[1751536476250,3.62499158,155.95,155.89,3.62499158]
[1751536476653,3.62499158,155.95,155.93,6.4107]
[1751536477353,3.62499158,155.95,155.86,2.1238]
[1751536477652,3.62499158,155.93,155.86,5.74879158]
[1751536478553,10.03619158,155.93,155.86,5.74879158]
[1751536479553,10.03619158,155.93,155.9,6.4119]
[1751536481356,6.4116,155.92,155.89,6.4125]
[1751536482458,3.62499158,155.91,155.86,2.1238]
[1751536482658,3.62499158,155.89,155.82,3.62499158]
[1751536483660,3.62499158,155.89,155.86,6.4135]
[1751536483860,10.03759158,155.89,155.86,6.4135]
[1751536484057,3.62499158,155.89,155.82,3.62499158]
[1751536484254,4.3758,155.93,155.84,3.62499158]
[1751536484462,3.62499158,155.92,155.84,3.62499158]
[1751536485359,10.03659158,155.92,155.85,3.62499158]
[1751536487166,10.03659158,155.92,155.89,6.4125]
[1751536488265,3.62499158,155.92,155.9,6.412]
[1751536488466,8.14443153,155.97,155.87,3.62499158]
[1751536488467,3.62499158,155.94,155.87,3.62499158]
[1751536489067,10.03579158,155.94,155.9,6.4118]
[1751536489468,10.03569158,155.94,155.9,6.4118]
[1751536489662,10.03569158,155.94,155.87,3.62499158]
[1751536491168,3.62499158,155.94,155.87,3.62499158]
[1751536493572,10.03559158,155.94,155.91,6.4116]
[1751536495076,3.62499158,155.94,155.92,6.4113]
[1751536495770,10.03489158,155.96,155.89,3.62499158]
[1751536496876,6.4102,155.95,155.89,3.62499158]
[1751536497372,3.62499158,155.96,155.89,3.62499158]
[1751536497565,10.03529158,155.95,155.92,6.4111]
[1751536499080,10.03529158,155.95,155.93,6.4109]
[1751536499275,3.62499158,155.95,155.85,7.91147792]
[1751536499477,3.62499158,155.86,155.77,12.34737792]
[1751536499677,3.62499158,155.85,155.84,6.4146]
[1751536499979,2.1634,155.91,155.81,3.62499158]
[1751536500283,3.62499158,155.89,155.83,3.62499158]
[1751536501676,3.62499158,155.89,155.85,6.4139]
[1751536501878,2.1634,155.91,155.79,11.89464382]
[1751536501879,3.62499158,155.87,155.79,7.91147792]
[1751536502075,3.62499158,155.84,155.8,6.4162]
[1751536504287,3.62499158,155.84,155.79,6.4167]
[1751536504487,3.62499158,155.82,155.76,2.3115]
[1751536504888,3.62499158,155.82,155.76,3.62499158]
[1751536505280,3.62499158,155.82,155.79,6.4166]
[1751536505891,3.62499158,155.82,155.77,6.4172]
[1751536506389,10.04139158,155.8,155.73,2.1462]
[1751536506588,10.04139158,155.8,155.73,3.62499158]
[1751536506990,6.4168,155.79,155.75,6.418]
[1751536507190,3.62499158,155.8,155.73,3.62499158]
[1751536507592,10.04129158,155.8,155.75,6.4179]
[1751536507790,10.04129158,155.8,155.73,3.62499158]
[1751536509093,6.4167,155.79,155.75,6.4183]
[1751536509392,3.62499158,155.8,155.73,3.62499158]
[1751536510193,3.62499158,155.78,155.71,3.62499158]
[1751536510893,10.04219158,155.78,155.71,3.62499158]
[1751536511186,10.04219158,155.78,155.74,6.4184]
[1751536511392,10.04219158,155.78,155.71,3.62499158]
[1751536512393,10.04219158,155.78,155.74,6.4185]
[1751536513798,10.04219158,155.78,155.75,6.4183]
[1751536514900,6.4178,155.77,155.74,6.4187]
[1751536515100,2.3029,155.81,155.69,2.1462]
[1751536515396,3.62499158,155.77,155.75,6.4181]
[1751536518399,6.4169,155.79,155.76,6.4178]
[1751536518701,3.62499158,155.8,155.72,3.62499158]
[1751536519102,6.4169,155.79,155.72,3.62499158]
[1751536519703,6.4169,155.79,155.75,6.4179]
[1751536520603,2.3029,155.81,155.74,3.62499158]
[1751536520803,5.92789158,155.81,155.74,3.62499158]
[1751536521203,12.34389158,155.81,155.74,3.62499158]
[1751536521701,12.34389158,155.81,155.77,6.4172]
[1751536522198,12.34389158,155.81,155.74,3.62499158]
[1751536522701,6.4163,155.8,155.74,3.62499158]
[1751536522901,6.4163,155.8,155.76,6.4176]
[1751536524097,6.4168,155.79,155.76,6.4176]
[1751536524297,5.92789158,155.81,155.75,6.4182]
[1751536524506,5.92789158,155.81,155.72,3.62499158]
[1751536524704,6.4167,155.79,155.75,6.4181]
[1751536524899,5.92789158,155.81,155.75,6.4181]
[1751536525100,6.4171,155.79,155.75,6.4181]
[1751536525596,5.92789158,155.81,155.74,3.62499158]
[1751536525905,2.3029,155.81,155.78,6.4167]
[1751536526204,12.19859158,155.83,155.76,3.62499158]
[1751536526599,12.19859158,155.83,155.79,6.4163]
[1751536528200,2.1584,155.83,155.78,3.62499158]
[1751536529807,8.5737,155.83,155.79,6.4163]
[1751536530307,6.4156,155.82,155.79,6.4163]
[1751536530498,2.1584,155.83,155.79,6.4163]
[1751536530899,2.1584,155.83,155.8,6.4162]
[1751536531103,8.5737,155.83,155.8,6.4162]
[1751536532810,8.5737,155.83,155.81,6.4158]
[1751536535411,12.19869158,155.83,155.8,6.4162]
[1751536536113,5.78339158,155.83,155.81,6.4158]
[1751536536315,5.78339158,155.83,155.76,3.62499158]
[1751536536611,5.78339158,155.83,155.81,6.4156]
[1751536536814,12.19849158,155.83,155.81,6.4156]
[1751536537116,8.5735,155.83,155.81,6.4156]
[1751536538513,2.1584,155.83,155.81,6.4156]
[1751536540211,6.4148,155.84,155.82,6.4152]
[1751536540412,10.03939158,155.85,155.82,6.4152]
[1751536541221,6.4147,155.84,155.82,6.4152]
[1751536542519,10.03939158,155.85,155.82,6.4152]
[1751536544921,6.4146,155.84,155.82,6.4152]
[1751536545122,3.62499158,155.85,155.81,6.4156]
[1751536545422,6.4148,155.84,155.78,3.62499158]
[1751536545724,6.4155,155.82,155.76,2.1631]
[1751536546020,3.62499158,155.83,155.76,5.78809158]
[1751536546217,3.62499158,155.83,155.8,6.4161]
[1751536546720,10.04029158,155.83,155.8,6.4161]
[1751536547322,10.04029158,155.83,155.81,6.4158]
[1751536548523,10.04029158,155.83,155.8,6.4161]
[1751536548726,10.04029158,155.83,155.76,5.78809158]
[1751536548921,6.4153,155.83,155.76,5.78809158]
[1751536549116,10.04029158,155.83,155.76,5.78809158]
[1751536549827,3.62499158,155.83,155.76,5.78809158]
[1751536551729,10.04009158,155.83,155.8,6.416]
[1751536552828,6.4151,155.83,155.8,6.416]
[1751536553128,6.4155,155.82,155.79,6.4165]
[1751536553530,3.62499158,155.84,155.76,5.78809158]
[1751536553730,6.4153,155.83,155.8,6.4163]
[1751536554130,3.62499158,155.84,155.76,5.78809158]
[1751536554330,6.4151,155.83,155.8,6.416]
[1751536554726,10.03989158,155.84,155.81,6.4156]
[1751536555633,6.415,155.83,155.8,6.4161]
[1751536557836,6.415,155.83,155.81,6.4158]
[1751536558439,10.03979158,155.84,155.81,6.4158]
[1751536559528,10.03979158,155.84,155.82,6.4154]
[1751536560236,6.4144,155.85,155.82,6.4154]
[1751536560436,3.62499158,155.86,155.78,3.62499158]
[1751536560632,5.27766735,155.85,155.8,3.62499158]
[1751536560832,2.2599,155.88,155.86,6.4138]
[1751536561037,5.27727844,155.87,155.82,3.62499158]
[1751536561333,5.2772002,155.86,155.84,6.4146]
[1751536561638,3.62499158,155.87,155.81,3.62499158]
[1751536562035,5.27750772,155.86,155.81,3.62499158]
[1751536562738,3.62499158,155.87,155.81,3.62499158]
[1751536562930,5.28210292,155.86,155.82,3.62499158]
[1751536563128,12.32769158,155.88,155.85,6.4139]
[1751536563328,5.28101605,155.87,155.85,6.4139]
[1751536564040,6.4134,155.87,155.84,6.4145]
[1751536564238,8.90648888,155.86,155.76,8.06439158]
[1751536564439,10.03899158,155.86,155.79,3.62499158]
[1751536565041,5.28241911,155.85,155.81,6.4158]
[1751536565338,8.90741069,155.84,155.77,3.62499158]
[1751536565538,3.62499158,155.84,155.77,3.62499158]
[1751536565935,5.30137979,155.83,155.8,6.4161]
[1751536566242,5.30137979,155.83,155.77,3.62499158]
[1751536566441,6.4153,155.83,155.79,6.4164]
[1751536566743,6.4153,155.83,155.77,3.62499158]
[1751536566940,10.04059158,155.82,155.79,6.4166]
[1751536567443,3.62499158,155.84,155.75,5.87329158]
[1751536567640,5.30330851,155.83,155.75,5.87329158]
[1751536567842,10.03989158,155.84,155.8,6.4159]
[1751536568037,5.30330753,155.83,155.8,6.4159]
[1751536568338,10.03989158,155.84,155.8,6.4159]
[1751536568542,5.30430353,155.83,155.8,6.4159]
[1751536568739,10.03989158,155.84,155.8,6.4159]
[1751536569038,5.30430353,155.83,155.8,6.4159]
[1751536569240,6.4153,155.83,155.79,6.4165]
[1751536570444,5.30713023,155.82,155.8,6.4162]
[1751536570642,10.03979158,155.84,155.77,3.62499158]
[1751536570941,5.30713121,155.83,155.77,3.62499158]
[1751536571243,5.30713121,155.82,155.77,3.62499158]
[1751536571441,6.4151,155.83,155.77,3.62499158]
[1751536571741,5.30766791,155.82,155.77,3.62499158]
[1751536571942,6.4151,155.83,155.77,3.62499158]
[1751536572135,5.30766461,155.82,155.77,3.62499158]
[1751536572338,6.4151,155.83,155.75,2.2483]
[1751536572538,5.30824052,155.82,155.76,3.62499158]
[1751536572740,6.4151,155.83,155.76,3.62499158]
[1751536572944,5.30824052,155.82,155.76,3.62499158]
[1751536573142,3.62499158,155.83,155.8,6.416]
[1751536573343,5.30832255,155.82,155.8,6.416]
[1751536573543,3.62499158,155.83,155.8,6.416]
[1751536573745,5.2910744,155.82,155.8,6.416]
[1751536573943,3.62499158,155.83,155.8,6.416]
[1751536574145,5.2910744,155.82,155.8,6.416]
[1751536574448,10.04019158,155.83,155.79,6.4165]
[1751536574753,5.29103891,155.82,155.79,6.4165]
[1751536574956,6.4155,155.82,155.79,6.4165]
[1751536576754,6.4155,155.82,155.8,6.4163]
[1751536576953,6.4155,155.82,155.75,2.2483]
[1751536577552,5.2915322,155.81,155.75,2.2483]
[1751536577753,6.4155,155.82,155.75,2.2483]
[1751536577953,5.2915322,155.81,155.75,2.2483]
[1751536578148,3.62499158,155.81,155.75,2.2483]
[1751536578354,3.62499158,155.79,155.72,14.01464382]
[1751536578654,3.62499158,155.77,155.71,11.89464382]
[1751536579251,10.04259158,155.77,155.74,6.4184]
[1751536581762,6.418,155.76,155.73,6.419]
[1751536581959,3.62499158,155.75,155.69,2.2235]
[1751536582468,10.04359158,155.75,155.69,2.2235]
[1751536582962,10.04359158,155.75,155.72,6.4193]
[1751536584858,3.62499158,155.75,155.73,6.4192]
[1751536585059,3.62499158,155.75,155.69,2.2235]
[1751536585258,3.62499158,155.75,155.72,6.4193]
[1751536585459,10.04339158,155.75,155.72,6.4193]
[1751536585660,3.62499158,155.75,155.69,2.2235]
[1751536585862,3.62499158,155.77,155.69,2.2235]
[1751536586064,3.62499158,155.77,155.7,3.62499158]
[1751536586256,5.23400805,155.79,155.72,3.62499158]
[1751536586458,2.1222,155.81,155.74,3.62499158]
[1751536586655,2.1421,155.82,155.76,3.62499158]
[1751536587067,8.5578,155.82,155.76,3.62499158]
[1751536587368,2.1421,155.82,155.76,3.62499158]
[1751536588063,6.4161,155.81,155.78,6.4169]
[1751536588767,6.4163,155.8,155.77,6.4173]
[1751536589267,2.1421,155.82,155.77,6.4173]
[1751536589563,5.76709158,155.82,155.77,6.4173]
[1751536589959,6.4161,155.81,155.78,6.417]
[1751536590155,5.76709158,155.82,155.78,6.417]
[1751536590355,5.76709158,155.82,155.76,3.62499158]
[1751536590767,12.18289158,155.82,155.78,6.4169]
[1751536590963,2.1421,155.82,155.76,3.62499158]
[1751536592064,2.1421,155.82,155.8,6.4162]
[1751536592268,7.39744184,155.82,155.8,6.4162]
[1751536592663,2.1421,155.82,155.8,6.4162]
[1751536592963,8.5576,155.82,155.79,6.4164]
[1751536596270,6.416,155.81,155.78,6.4169]
[1751536599872,6.4164,155.8,155.78,6.4169]
[1751536600064,3.62499158,155.8,155.73,3.62499158]
[1751536600370,10.04209158,155.78,155.71,3.62499158]
[1751536600570,10.04209158,155.78,155.75,6.4181]
[1751536600971,10.04209158,155.78,155.71,3.62499158]
[1751536601167,10.04209158,155.78,155.76,6.4179]
[1751536601781,10.04209158,155.78,155.75,6.4181]
[1751536604277,3.62499158,155.78,155.76,6.4179]
[1751536604469,3.62499158,155.8,155.73,3.62499158]
[1751536604769,2.1421,155.82,155.75,3.62499158]
[1751536604964,2.2553,155.85,155.77,3.62499158]
[1751536605165,8.88486735,155.84,155.77,3.62499158]
[1751536605364,8.88486735,155.84,155.81,6.4155]
[1751536605570,2.2654,155.86,155.79,3.62499158]
[1751536605766,7.52458432,155.86,155.81,3.62499158]
[1751536606376,7.52458432,155.86,155.83,6.4148]
[1751536607180,3.62499158,155.88,155.81,3.62499158]
[1751536607477,8.87985127,155.89,155.81,3.62499158]
[1751536607675,8.87985127,155.89,155.84,6.4143]
[1751536607874,5.25485969,155.88,155.84,6.4143]
[1751536608279,6.4132,155.88,155.84,6.4143]
[1751536608578,3.62499158,155.89,155.84,6.4143]
[1751536608780,11.66814931,155.88,155.84,6.4143]
[1751536608979,6.4132,155.88,155.85,6.4142]
[1751536609887,8.8798859,155.87,155.84,6.4145]
[1751536610085,3.62499158,155.87,155.84,6.4145]
[1751536610488,10.03859158,155.87,155.84,6.4145]
[1751536610889,3.62499158,155.85,155.77,8.20939158]
[1751536611086,6.4149,155.84,155.77,8.20939158]
[1751536611585,6.4149,155.84,155.81,6.4156]
[1751536613189,10.03929158,155.85,155.82,6.4153]
[1751536613783,6.4147,155.84,155.81,6.4157]
[1751536614391,3.62499158,155.85,155.81,6.4157]
[1751536615691,3.62499158,155.83,155.8,6.4161]
[1751536615890,10.04029158,155.83,155.77,5.92089158]
[1751536616387,10.04029158,155.83,155.8,6.4161]